[Event "*** Titled Tuesday Blitz"]
[Site "Chess.com"]
[Date "2020.04.21"]
[Round "1"]
[White "pooh2012"]
[Black "Camels1981"]
[Result "1/2-1/2"]
[WhiteElo "2497"]
[BlackElo "2048"]
[TimeControl "180+1"]
[EndTime "10:07:54 PDT"]
[Termination "Game drawn by repetition"]

1. Nf3 {[%clk 0:03:00.8]} 1... g6 {[%clk 0:02:59.4]} 2. h4 {[%clk 0:02:59.4]}
2... h6 {[%clk 0:02:57.9]} 3. d4 {[%clk 0:02:58.7]} 3... Bg7 {[%clk 0:02:58.1]}
4. c3 {[%clk 0:02:56.5]} 4... Nf6 {[%clk 0:02:57.5]} 5. Bf4 {[%clk 0:02:55.4]}
5... b6 {[%clk 0:02:58]} 6. a4 {[%clk 0:02:53.3]} 6... Bb7 {[%clk 0:02:56.7]} 7.
Nbd2 {[%clk 0:02:51.7]} 7... d6 {[%clk 0:02:56.8]} 8. a5 {[%clk 0:02:51]} 8...
c5 {[%clk 0:02:56.1]} 9. e3 {[%clk 0:02:45.9]} 9... O-O {[%clk 0:02:54.3]} 10.
Qc2 {[%clk 0:02:33.2]} 10... Nbd7 {[%clk 0:02:52.9]} 11. Be2 {[%clk 0:02:27]}
11... Re8 {[%clk 0:02:49.6]} 12. Nc4 {[%clk 0:02:20.9]} 12... Qc7 {[%clk
0:02:47.6]} 13. axb6 {[%clk 0:02:08.3]} 13... axb6 {[%clk 0:02:46.7]} 14. O-O
{[%clk 0:02:07.6]} 14... e5 {[%clk 0:02:41.1]} 15. dxe5 {[%clk 0:02:03.4]} 15...
dxe5 {[%clk 0:02:42]} 16. Rxa8 {[%clk 0:02:02]} 16... Bxa8 {[%clk 0:02:40.3]}
17. Bh2 {[%clk 0:01:56.9]} 17... Qc6 {[%clk 0:02:31.5]} 18. Rd1 {[%clk
0:01:51.7]} 18... e4 {[%clk 0:02:30.2]} 19. Nfe5 {[%clk 0:01:42.3]} 19... Qe6
{[%clk 0:02:25.2]} 20. Rd6 {[%clk 0:01:32.9]} 20... Qe7 {[%clk 0:02:20.4]} 21.
Qd2 {[%clk 0:01:29.5]} 21... Nxe5 {[%clk 0:02:18.1]} 22. Nxe5 {[%clk 0:01:20.5]}
22... Nd5 {[%clk 0:02:13.3]} 23. Nc6 {[%clk 0:01:03.9]} 23... Bxc6 {[%clk
0:02:02.1]} 24. Rxc6 {[%clk 0:01:04.8]} 24... Rd8 {[%clk 0:02:02.2]} 25. Bc4
{[%clk 0:00:47.3]} 25... Nb4 {[%clk 0:01:51.4]} 26. Rd6 {[%clk 0:00:46.2]} 26...
Nd3 {[%clk 0:01:40.2]} 27. Rxd8+ {[%clk 0:00:33.3]} 27... Qxd8 {[%clk
0:01:41.1]} 28. f3 {[%clk 0:00:33.4]} 28... Qxh4 {[%clk 0:01:33.7]} 29. fxe4
{[%clk 0:00:31.6]} 29... Nxb2 {[%clk 0:01:20.3]} 30. Bd5 {[%clk 0:00:17]} 30...
Na4 {[%clk 0:01:11.4]} 31. e5 {[%clk 0:00:16.8]} 31... c4 {[%clk 0:01:02]} 32.
e4 {[%clk 0:00:14.2]} 32... Nc5 {[%clk 0:01:01.7]} 33. Bf4 {[%clk 0:00:11]}
33... Nd3 {[%clk 0:00:56.2]} 34. g3 {[%clk 0:00:11.2]} 34... Qe7 {[%clk
0:00:50.8]} 35. Bxc4 {[%clk 0:00:10.9]} 35... Nxe5 {[%clk 0:00:50.7]} 36. Be2
{[%clk 0:00:11]} 36... Qc5+ {[%clk 0:00:49.3]} 37. Be3 {[%clk 0:00:10.7]} 37...
Qc6 {[%clk 0:00:48.5]} 38. Qd5 {[%clk 0:00:07.9]} 38... Qxc3 {[%clk 0:00:47.8]}
39. Bf2 {[%clk 0:00:04.4]} 39... Qc2 {[%clk 0:00:46.3]} 40. Bd1 {[%clk
0:00:03.1]} 40... Qc1 {[%clk 0:00:42.4]} 41. Kg2 {[%clk 0:00:03.3]} 41... h5
{[%clk 0:00:38.8]} 42. Bxb6 {[%clk 0:00:03.3]} 42... h4 {[%clk 0:00:34.4]} 43.
gxh4 {[%clk 0:00:04.2]} 43... Qf4 {[%clk 0:00:33]} 44. Bf2 {[%clk 0:00:03.6]}
44... Ng4 {[%clk 0:00:31.6]} 45. Bxg4 {[%clk 0:00:02.9]} 45... Qxg4+ {[%clk
0:00:31.7]} 46. Bg3 {[%clk 0:00:03.3]} 46... Qe2+ {[%clk 0:00:31.7]} 47. Kh3
{[%clk 0:00:02.9]} 47... Qf1+ {[%clk 0:00:31.4]} 48. Kh2 {[%clk 0:00:02.9]}
48... Qe2+ {[%clk 0:00:29.1]} 49. Kh3 {[%clk 0:00:03.4]} 49... Qf3 {[%clk
0:00:29]} 50. Kh2 {[%clk 0:00:03.4]} 50... Bf6 {[%clk 0:00:25.9]} 51. e5 {[%clk
0:00:02.7]} 51... Qe2+ {[%clk 0:00:23.8]} 52. Kh3 {[%clk 0:00:02.8]} 52... Be7
{[%clk 0:00:24]} 53. Qd7 {[%clk 0:00:02.4]} 53... Qf1+ {[%clk 0:00:20.5]} 54.
Kh2 {[%clk 0:00:02.9]} 54... Qe2+ {[%clk 0:00:20.4]} 55. Kh3 {[%clk 0:00:03.4]}
55... Qf1+ {[%clk 0:00:20.1]} 56. Kh2 {[%clk 0:00:03.8]} 56... Qe2+ {[%clk
0:00:20.1]} 57. Kh3 {[%clk 0:00:03.1]} 1/2-1/2

[Event "*** Titled Tuesday Blitz"]
[Site "Chess.com"]
[Date "2020.04.21"]
[Round "1"]
[White "tacticthunder"]
[Black "ViktoriyaTarasova"]
[Result "1-0"]
[WhiteElo "2628"]
[BlackElo "2235"]
[TimeControl "180+1"]
[EndTime "10:07:55 PDT"]
[Termination "tacticthunder won by resignation"]

1. e4 {[%clk 0:03:00.4]} 1... c5 {[%clk 0:02:59.5]} 2. Nf3 {[%clk 0:03:00]} 2...
d6 {[%clk 0:02:59.7]} 3. d4 {[%clk 0:03:00.2]} 3... cxd4 {[%clk 0:02:59.7]} 4.
Nxd4 {[%clk 0:03:01.1]} 4... Nf6 {[%clk 0:02:59.5]} 5. Nc3 {[%clk 0:03:01.3]}
5... a6 {[%clk 0:03:00]} 6. h3 {[%clk 0:03:01.6]} 6... e5 {[%clk 0:02:59.3]} 7.
Nde2 {[%clk 0:03:01.3]} 7... h5 {[%clk 0:02:59.3]} 8. g3 {[%clk 0:03:00.9]} 8...
b5 {[%clk 0:02:58.9]} 9. Bg2 {[%clk 0:03:00.2]} 9... Be7 {[%clk 0:02:57.8]} 10.
O-O {[%clk 0:02:59.6]} 10... h4 {[%clk 0:02:53.9]} 11. g4 {[%clk 0:02:58.8]}
11... Bb7 {[%clk 0:02:51.7]} 12. Be3 {[%clk 0:02:58.1]} 12... b4 {[%clk
0:02:47.2]} 13. Nd5 {[%clk 0:02:57.3]} 13... Nxd5 {[%clk 0:02:47.6]} 14. exd5
{[%clk 0:02:58.2]} 14... Bg5 {[%clk 0:02:47]} 15. Bxg5 {[%clk 0:02:34.4]} 15...
Qxg5 {[%clk 0:02:46.5]} 16. f4 {[%clk 0:02:35.3]} 16... exf4 {[%clk 0:02:44]}
17. Rxf4 {[%clk 0:02:36.2]} 17... O-O {[%clk 0:02:39.5]} 18. Rxb4 {[%clk
0:02:35.7]} 18... Qe3+ {[%clk 0:02:30.8]} 19. Kh1 {[%clk 0:02:27.3]} 19... Re8
{[%clk 0:02:20.2]} 20. Rxb7 {[%clk 0:01:49.8]} 20... Qxe2 {[%clk 0:02:19.7]} 21.
Qxe2 {[%clk 0:01:49.8]} 21... Rxe2 {[%clk 0:02:18.3]} 22. b4 {[%clk 0:01:49.7]}
22... Rxc2 {[%clk 0:01:58.8]} 23. Re1 {[%clk 0:01:47.5]} 23... Kf8 {[%clk
0:01:58.4]} 24. Ree7 {[%clk 0:01:43.2]} 24... Rf2 {[%clk 0:01:54.1]} 25. Rec7
{[%clk 0:01:40.6]} 25... Nd7 {[%clk 0:01:47.9]} 26. Rxd7 {[%clk 0:01:40]} 26...
Re8 {[%clk 0:01:48.6]} 27. Kg1 {[%clk 0:01:35.5]} 27... Rf6 {[%clk 0:01:29.8]}
28. Rbc7 {[%clk 0:01:32.6]} 28... g5 {[%clk 0:01:27.5]} 29. Rc2 {[%clk
0:01:28.7]} 29... Re1+ {[%clk 0:01:26.7]} 30. Kh2 {[%clk 0:01:28.5]} 30... Rb1
{[%clk 0:01:24.5]} 31. Rb7 {[%clk 0:01:27.1]} 31... Rf4 {[%clk 0:01:23.2]} 32.
a4 {[%clk 0:01:22.9]} 32... a5 {[%clk 0:01:20.4]} 33. b5 {[%clk 0:01:19.6]}
33... Rxa4 {[%clk 0:01:20]} 34. Rf2 {[%clk 0:01:13.7]} 34... Rf4 {[%clk
0:01:19.8]} 35. Rxf4 {[%clk 0:01:13.6]} 35... gxf4 {[%clk 0:01:20.4]} 36. b6
{[%clk 0:01:13.4]} 36... Rb2 {[%clk 0:01:19.9]} 37. Kg1 {[%clk 0:01:09.9]} 37...
a4 {[%clk 0:01:14.3]} 38. Ra7 {[%clk 0:01:07]} 38... Rxb6 {[%clk 0:01:13.1]} 39.
Rxa4 {[%clk 0:01:06.5]} 39... Rb1+ {[%clk 0:01:13.7]} 40. Kf2 {[%clk 0:01:06.8]}
40... Rb2+ {[%clk 0:01:09.4]} 41. Kf3 {[%clk 0:01:05.7]} 41... Kg7 {[%clk
0:01:09.3]} 42. Rxf4 {[%clk 0:01:04.4]} 42... Rb3+ {[%clk 0:01:09.2]} 43. Kf2
{[%clk 0:01:04]} 43... Rb2+ {[%clk 0:01:09.5]} 44. Kg1 {[%clk 0:01:04]} 44...
Rb1+ {[%clk 0:01:07.3]} 45. Rf1 {[%clk 0:01:04]} 45... Rb2 {[%clk 0:01:07.4]}
46. Rf2 {[%clk 0:01:03]} 46... Rb1+ {[%clk 0:01:06.6]} 47. Kh2 {[%clk
0:01:03.5]} 47... f6 {[%clk 0:01:06.1]} 48. Be4 {[%clk 0:01:03.3]} 48... Rb4
{[%clk 0:01:05.7]} 49. Bf3 {[%clk 0:01:01.5]} 49... Kg6 {[%clk 0:01:05.1]} 50.
Re2 {[%clk 0:01:00.5]} 50... Rd4 {[%clk 0:01:03.6]} 51. Kg2 {[%clk 0:00:55.7]}
51... Kg5 {[%clk 0:01:03.5]} 52. Rf2 {[%clk 0:00:53.7]} 52... Rb4 {[%clk
0:01:02.5]} 53. Be2 {[%clk 0:00:52.6]} 53... Rd4 {[%clk 0:00:58.7]} 54. Rf5+
{[%clk 0:00:52.1]} 54... Kg6 {[%clk 0:00:58.9]} 55. Kf2 {[%clk 0:00:52]} 55...
Ra4 {[%clk 0:00:57]} 56. Bd3 {[%clk 0:00:51.7]} 56... Kg7 {[%clk 0:00:55]} 57.
Ke3 {[%clk 0:00:47.2]} 57... Ra3 {[%clk 0:00:50.7]} 58. Rh5 {[%clk 0:00:46.7]}
58... Ra5 {[%clk 0:00:49.2]} 59. Rf5 {[%clk 0:00:35.3]} 59... Rc5 {[%clk
0:00:47.6]} 60. Kd4 {[%clk 0:00:29.3]} 60... Ra5 {[%clk 0:00:47.3]} 61. Rh5
{[%clk 0:00:28.5]} 61... Ra4+ {[%clk 0:00:47.7]} 62. Bc4 {[%clk 0:00:27.9]}
62... Kg6 {[%clk 0:00:44.7]} 63. Rxh4 {[%clk 0:00:27.5]} 63... f5 {[%clk
0:00:44.8]} 64. gxf5+ {[%clk 0:00:26.8]} 64... Kxf5 {[%clk 0:00:45]} 65. Rh8
{[%clk 0:00:24.8]} 65... Ra1 {[%clk 0:00:44.2]} 66. h4 {[%clk 0:00:24.4]} 66...
Rd1+ {[%clk 0:00:44.3]} 67. Bd3+ {[%clk 0:00:24.5]} 67... Kg4 {[%clk 0:00:44.1]}
68. h5 {[%clk 0:00:24.6]} 68... Kg5 {[%clk 0:00:42.5]} 69. h6 {[%clk 0:00:24.5]}
1-0

[Event "*** Titled Tuesday Blitz"]
[Site "Chess.com"]
[Date "2020.04.21"]
[Round "1"]
[White "manitodeplomo"]
[Black "alex_zapata"]
[Result "1-0"]
[WhiteElo "2593"]
[BlackElo "2240"]
[TimeControl "180+1"]
[EndTime "10:07:59 PDT"]
[Termination "manitodeplomo won by resignation"]

1. d4 {[%clk 0:02:59]} 1... d5 {[%clk 0:02:59.1]} 2. c4 {[%clk 0:02:58.5]} 2...
Nf6 {[%clk 0:02:59.1]} 3. Nf3 {[%clk 0:02:55.7]} 3... c6 {[%clk 0:02:59]} 4. Nc3
{[%clk 0:02:56.1]} 4... e6 {[%clk 0:02:58.4]} 5. Bg5 {[%clk 0:02:53.4]} 5...
Nbd7 {[%clk 0:02:58.2]} 6. e3 {[%clk 0:02:53]} 6... Qa5 {[%clk 0:02:58.2]} 7.
Nd2 {[%clk 0:02:51.7]} 7... dxc4 {[%clk 0:02:55.8]} 8. Bxf6 {[%clk 0:02:50.5]}
8... Nxf6 {[%clk 0:02:56.7]} 9. Nxc4 {[%clk 0:02:51.1]} 9... Qc7 {[%clk
0:02:56.7]} 10. Be2 {[%clk 0:02:52]} 10... Be7 {[%clk 0:02:56.1]} 11. O-O {[%clk
0:02:52.5]} 11... O-O {[%clk 0:02:56.8]} 12. Rc1 {[%clk 0:02:52.6]} 12... Rd8
{[%clk 0:02:47.8]} 13. a3 {[%clk 0:02:52.4]} 13... h6 {[%clk 0:02:43.8]} 14. b4
{[%clk 0:02:51.1]} 14... Nd5 {[%clk 0:02:42.9]} 15. Ne4 {[%clk 0:02:49.2]} 15...
Bd7 {[%clk 0:02:36.4]} 16. Qb3 {[%clk 0:02:48.2]} 16... Be8 {[%clk 0:02:36]} 17.
Rc2 {[%clk 0:02:47.2]} 17... Rac8 {[%clk 0:02:36]} 18. Rfc1 {[%clk 0:02:47]}
18... Qb8 {[%clk 0:02:36.2]} 19. g3 {[%clk 0:02:47.5]} 19... b6 {[%clk
0:02:31.4]} 20. Ne5 {[%clk 0:02:44.7]} 20... Qb7 {[%clk 0:02:17]} 21. Bf3 {[%clk
0:02:37.2]} 21... Rc7 {[%clk 0:02:11.4]} 22. h4 {[%clk 0:02:27.8]} 22... Rdc8
{[%clk 0:02:10.8]} 23. Kg2 {[%clk 0:02:27.9]} 23... f6 {[%clk 0:02:00.8]} 24.
Nd3 {[%clk 0:02:27]} 24... Bf7 {[%clk 0:01:55.6]} 25. Qb2 {[%clk 0:02:25.4]}
25... Qa6 {[%clk 0:01:52.1]} 26. Nf4 {[%clk 0:02:17.9]} 26... Nxf4+ {[%clk
0:01:50.8]} 27. gxf4 {[%clk 0:02:18.8]} 27... f5 {[%clk 0:01:34.3]} 28. Nd2
{[%clk 0:02:15.4]} 28... Bxh4 {[%clk 0:01:34.2]} 29. Bxc6 {[%clk 0:02:06.6]}
29... b5 {[%clk 0:00:58.5]} 30. Bxb5 {[%clk 0:01:29.4]} 30... Qb7+ {[%clk
0:00:54.5]} 31. Nf3 {[%clk 0:01:27.7]} 31... Rxc2 {[%clk 0:00:53.7]} 32. Rxc2
{[%clk 0:01:28.3]} 32... Rxc2 {[%clk 0:00:53.4]} 33. Qxc2 {[%clk 0:01:28.6]}
33... Qxb5 {[%clk 0:00:54]} 34. Nxh4 {[%clk 0:01:20]} 34... Qd5+ {[%clk
0:00:53.5]} 35. Kg3 {[%clk 0:01:10.4]} 35... g5 {[%clk 0:00:51.4]} 36. fxg5
{[%clk 0:01:04.1]} 36... hxg5 {[%clk 0:00:52.3]} 37. Nf3 {[%clk 0:01:03.6]}
37... Qd6+ {[%clk 0:00:44.8]} 38. Ne5 {[%clk 0:01:01.9]} 38... Bh5 {[%clk
0:00:20.9]} 39. Qc8+ {[%clk 0:00:59.6]} 39... Kg7 {[%clk 0:00:21.3]} 40. Qd7+
{[%clk 0:00:45.3]} 40... Qxd7 {[%clk 0:00:21.3]} 41. Nxd7 {[%clk 0:00:46.2]}
41... Kf7 {[%clk 0:00:20.2]} 42. f3 {[%clk 0:00:33.5]} 42... Ke7 {[%clk
0:00:20.3]} 43. Ne5 {[%clk 0:00:33.3]} 43... Kd6 {[%clk 0:00:20.5]} 44. a4
{[%clk 0:00:27.1]} 44... Be8 {[%clk 0:00:20]} 45. b5 {[%clk 0:00:25.9]} 45...
Kc7 {[%clk 0:00:20.3]} 46. f4 {[%clk 0:00:20.5]} 46... gxf4+ {[%clk 0:00:19.7]}
47. Kxf4 {[%clk 0:00:20.3]} 47... Kb6 {[%clk 0:00:20.6]} 48. Nc4+ {[%clk
0:00:19.1]} 48... Kc7 {[%clk 0:00:19.5]} 49. Ke5 {[%clk 0:00:19.4]} 49... Kd7
{[%clk 0:00:19.9]} 50. Na5 {[%clk 0:00:17.5]} 50... Bf7 {[%clk 0:00:13.4]} 51.
Nc6 {[%clk 0:00:16.8]} 51... Kc7 {[%clk 0:00:11.1]} 52. Nxa7 {[%clk 0:00:16.3]}
52... Kb6 {[%clk 0:00:11.7]} 53. Nc8+ {[%clk 0:00:15.1]} 53... Ka5 {[%clk
0:00:11.4]} 54. Nd6 {[%clk 0:00:15.6]} 54... Bg8 {[%clk 0:00:11.1]} 55. Nc4+
{[%clk 0:00:14.2]} 55... Kxa4 {[%clk 0:00:07]} 56. b6 {[%clk 0:00:14.7]} 56...
f4 {[%clk 0:00:06.1]} 57. exf4 {[%clk 0:00:14.1]} 1-0

[Event "*** Titled Tuesday Blitz"]
[Site "Chess.com"]
[Date "2020.04.21"]
[Round "1"]
[White "The_Chess_Coach"]
[Black "GM_LOADING"]
[Result "1-0"]
[WhiteElo "2146"]
[BlackElo "2509"]
[TimeControl "180+1"]
[EndTime "10:07:59 PDT"]
[Termination "The_Chess_Coach won on time"]

1. d4 {[%clk 0:03:00.2]} 1... Nf6 {[%clk 0:02:55]} 2. c4 {[%clk 0:03:00.4]} 2...
e6 {[%clk 0:02:47.1]} 3. Nc3 {[%clk 0:03:00.6]} 3... Bb4 {[%clk 0:02:46.7]} 4.
e3 {[%clk 0:03:00.4]} 4... O-O {[%clk 0:02:46.2]} 5. Bd2 {[%clk 0:03:00.5]} 5...
b6 {[%clk 0:02:45.2]} 6. Nf3 {[%clk 0:03:00.5]} 6... Bb7 {[%clk 0:02:45.4]} 7.
Bd3 {[%clk 0:03:00]} 7... d6 {[%clk 0:02:45.6]} 8. Rc1 {[%clk 0:02:59.4]} 8...
Nbd7 {[%clk 0:02:45.5]} 9. a3 {[%clk 0:02:56]} 9... Bxc3 {[%clk 0:02:45.4]} 10.
Bxc3 {[%clk 0:02:56.9]} 10... a5 {[%clk 0:02:41.9]} 11. O-O {[%clk 0:02:56.4]}
11... a4 {[%clk 0:02:42]} 12. Bc2 {[%clk 0:02:46.8]} 12... Bc6 {[%clk
0:02:38.5]} 13. d5 {[%clk 0:02:43.9]} 13... exd5 {[%clk 0:02:36.5]} 14. Nd4
{[%clk 0:02:44.2]} 14... Bb7 {[%clk 0:02:33.3]} 15. Qf3 {[%clk 0:02:23.7]} 15...
Ne5 {[%clk 0:02:20.8]} 16. Qg3 {[%clk 0:02:23.6]} 16... Ne4 {[%clk 0:01:58.7]}
17. Bxe4 {[%clk 0:02:04.8]} 17... dxe4 {[%clk 0:01:59.6]} 18. Rfd1 {[%clk
0:01:51.2]} 18... Qf6 {[%clk 0:01:29.4]} 19. Nb5 {[%clk 0:01:37.2]} 19... Rac8
{[%clk 0:01:24.9]} 20. Bxe5 {[%clk 0:01:17.9]} 20... dxe5 {[%clk 0:01:25.8]} 21.
Rd7 {[%clk 0:01:16.1]} 21... Bc6 {[%clk 0:01:24.8]} 22. Rdd1 {[%clk 0:01:10.2]}
22... Bxb5 {[%clk 0:01:18.8]} 23. cxb5 {[%clk 0:01:09.7]} 23... Rfd8 {[%clk
0:01:18.9]} 24. Qg4 {[%clk 0:01:08.6]} 24... Rxd1+ {[%clk 0:01:04.1]} 25. Qxd1
{[%clk 0:01:01]} 25... g6 {[%clk 0:00:47.7]} 26. Qxa4 {[%clk 0:00:59.4]} 26...
Rd8 {[%clk 0:00:45.3]} 27. Qc2 {[%clk 0:00:55.7]} 27... Rd7 {[%clk 0:00:30.6]}
28. h3 {[%clk 0:00:44.1]} 28... Qf5 {[%clk 0:00:28.5]} 29. Rd1 {[%clk
0:00:41.4]} 29... Rd3 {[%clk 0:00:23.3]} 30. Rc1 {[%clk 0:00:34.4]} 30... Kg7
{[%clk 0:00:19.9]} 31. Qe2 {[%clk 0:00:33.7]} 31... Qd7 {[%clk 0:00:19.2]} 32.
Kh2 {[%clk 0:00:33.3]} 32... Rd2 {[%clk 0:00:16.4]} 33. Qc4 {[%clk 0:00:33.4]}
33... Rxf2 {[%clk 0:00:15.7]} 34. Qxc7 {[%clk 0:00:32.1]} 34... Qf5 {[%clk
0:00:15.8]} 35. Qxb6 {[%clk 0:00:24.2]} 35... Qf3 {[%clk 0:00:11.4]} 36. Rg1
{[%clk 0:00:23.8]} 36... g5 {[%clk 0:00:09.7]} 37. Qc7 {[%clk 0:00:22.4]} 37...
Qf5 {[%clk 0:00:09.5]} 38. Qc5 {[%clk 0:00:22.3]} 38... g4 {[%clk 0:00:09.3]}
39. Kh1 {[%clk 0:00:19.5]} 39... gxh3 {[%clk 0:00:05.8]} 40. gxh3+ {[%clk
0:00:19.3]} 40... Kh6 {[%clk 0:00:06.1]} 41. Qd6+ {[%clk 0:00:19.6]} 41... Kh5
{[%clk 0:00:06.4]} 42. Qd1+ {[%clk 0:00:11.7]} 42... Kh6 {[%clk 0:00:05.1]} 43.
Qd6+ {[%clk 0:00:11.7]} 43... Kh5 {[%clk 0:00:05.1]} 44. Qd1+ {[%clk 0:00:11.9]}
44... Rf3 {[%clk 0:00:05.6]} 45. Rf1 {[%clk 0:00:11.2]} 45... Qxh3+ {[%clk
0:00:05.3]} 46. Kg1 {[%clk 0:00:11.1]} 46... Qg3+ {[%clk 0:00:05.8]} 47. Kh1
{[%clk 0:00:11]} 47... Kg4 {[%clk 0:00:06.4]} 48. Rg1 {[%clk 0:00:10.9]} 48...
Kh3 {[%clk 0:00:03.1]} 49. Rxg3+ {[%clk 0:00:10.9]} 1-0

[Event "*** Titled Tuesday Blitz"]
[Site "Chess.com"]
[Date "2020.04.21"]
[Round "1"]
[White "Tapuah"]
[Black "Oglob71"]
[Result "1/2-1/2"]
[WhiteElo "2846"]
[BlackElo "2454"]
[TimeControl "180+1"]
[EndTime "10:08:00 PDT"]
[Termination "Game drawn - insufficient material"]

1. e4 {[%clk 0:03:00.3]} 1... c5 {[%clk 0:02:58.9]} 2. Nf3 {[%clk 0:02:59.3]}
2... e6 {[%clk 0:02:58.9]} 3. d4 {[%clk 0:02:58.3]} 3... cxd4 {[%clk 0:02:58.8]}
4. Nxd4 {[%clk 0:02:58.2]} 4... a6 {[%clk 0:02:59.3]} 5. Nc3 {[%clk 0:02:56.5]}
5... Qc7 {[%clk 0:02:59.3]} 6. f4 {[%clk 0:02:52.1]} 6... Bb4 {[%clk 0:02:58]}
7. Qf3 {[%clk 0:02:50]} 7... Nf6 {[%clk 0:02:57.4]} 8. Bd2 {[%clk 0:02:47.9]}
8... Nc6 {[%clk 0:02:54.2]} 9. Nxc6 {[%clk 0:02:46.4]} 9... dxc6 {[%clk
0:02:54.3]} 10. e5 {[%clk 0:02:44.8]} 10... Nd5 {[%clk 0:02:49.6]} 11. O-O-O
{[%clk 0:02:40.7]} 11... Be7 {[%clk 0:02:44.5]} 12. Ne4 {[%clk 0:02:37.3]} 12...
b5 {[%clk 0:02:44.1]} 13. Kb1 {[%clk 0:02:34.4]} 13... Bb7 {[%clk 0:02:44.1]}
14. c4 {[%clk 0:02:12]} 14... bxc4 {[%clk 0:02:43.5]} 15. Bxc4 {[%clk
0:02:12.1]} 15... O-O-O {[%clk 0:02:37.5]} 16. Rc1 {[%clk 0:02:06.7]} 16... Kb8
{[%clk 0:02:37.5]} 17. Qb3 {[%clk 0:02:02.3]} 17... Ka8 {[%clk 0:02:36.2]} 18.
Rhd1 {[%clk 0:01:56.8]} 18... Rb8 {[%clk 0:02:29]} 19. Qd3 {[%clk 0:01:52.8]}
19... Qb6 {[%clk 0:02:24.8]} 20. Bb3 {[%clk 0:01:31.6]} 20... Rhd8 {[%clk
0:02:23.7]} 21. Qe2 {[%clk 0:01:25.7]} 21... a5 {[%clk 0:02:20.7]} 22. Bc4
{[%clk 0:01:16.6]} 22... Ba6 {[%clk 0:02:19.1]} 23. b3 {[%clk 0:01:02]} 23...
Bb5 {[%clk 0:02:12.7]} 24. Bxb5 {[%clk 0:00:59.7]} 24... cxb5 {[%clk 0:02:09]}
25. Qf3 {[%clk 0:00:53.9]} 25... Ba3 {[%clk 0:02:03.9]} 26. Rc2 {[%clk
0:00:49.9]} 26... Rbc8 {[%clk 0:02:04]} 27. Rxc8+ {[%clk 0:00:39.9]} 27... Rxc8
{[%clk 0:02:03.8]} 28. Qd3 {[%clk 0:00:37.6]} 28... Kb7 {[%clk 0:01:49.8]} 29.
Nc3 {[%clk 0:00:33.3]} 29... Nxc3+ {[%clk 0:01:46.5]} 30. Bxc3 {[%clk
0:00:33.2]} 30... Rc7 {[%clk 0:01:25.8]} 31. Qe4+ {[%clk 0:00:26.3]} 31... Qc6
{[%clk 0:01:23]} 32. Qxc6+ {[%clk 0:00:24.4]} 32... Rxc6 {[%clk 0:01:22.7]} 33.
Bxa5 {[%clk 0:00:24.2]} 33... Ka6 {[%clk 0:01:17.8]} 34. Bd2 {[%clk 0:00:22.6]}
34... Rc7 {[%clk 0:01:14.5]} 35. Bc1 {[%clk 0:00:21.3]} 35... Bxc1 {[%clk
0:01:05.2]} 36. Rxc1 {[%clk 0:00:20.7]} 36... Rd7 {[%clk 0:01:05.7]} 37. Kc2
{[%clk 0:00:20]} 37... Rd4 {[%clk 0:01:05.3]} 38. g3 {[%clk 0:00:19.2]} 38...
Rd7 {[%clk 0:00:55.5]} 39. Rd1 {[%clk 0:00:18.8]} 39... Rc7+ {[%clk 0:00:55.7]}
40. Kb2 {[%clk 0:00:18]} 40... b4 {[%clk 0:00:54.9]} 41. Rd4 {[%clk 0:00:16.1]}
41... Kb5 {[%clk 0:00:54]} 42. h4 {[%clk 0:00:15.2]} 42... h5 {[%clk 0:00:53.5]}
43. Rd3 {[%clk 0:00:14.1]} 43... g6 {[%clk 0:00:52.8]} 44. a3 {[%clk 0:00:12.5]}
44... bxa3+ {[%clk 0:00:50.9]} 45. Kxa3 {[%clk 0:00:12.7]} 45... Rc1 {[%clk
0:00:50.3]} 46. Rd7 {[%clk 0:00:11.6]} 46... Ra1+ {[%clk 0:00:47.5]} 47. Kb2
{[%clk 0:00:10.7]} 47... Rg1 {[%clk 0:00:47.9]} 48. Rxf7 {[%clk 0:00:10.6]}
48... Rxg3 {[%clk 0:00:48.4]} 49. Rf6 {[%clk 0:00:10.8]} 49... Rg4 {[%clk
0:00:47.5]} 50. Rxe6 {[%clk 0:00:10.6]} 50... Rxf4 {[%clk 0:00:47.5]} 51. Rxg6
{[%clk 0:00:09.3]} 51... Rxh4 {[%clk 0:00:47.9]} 52. Rd6 {[%clk 0:00:06.9]}
52... Kc5 {[%clk 0:00:45.4]} 53. Rh6 {[%clk 0:00:06.5]} 53... Kd5 {[%clk
0:00:44.7]} 54. e6 {[%clk 0:00:06.9]} 54... Kd6 {[%clk 0:00:45.2]} 55. Kc3
{[%clk 0:00:05.5]} 55... Rh1 {[%clk 0:00:43.7]} 56. b4 {[%clk 0:00:05.1]} 56...
h4 {[%clk 0:00:43.8]} 57. b5 {[%clk 0:00:05.3]} 57... h3 {[%clk 0:00:44.3]} 58.
b6 {[%clk 0:00:05.6]} 58... h2 {[%clk 0:00:44.1]} 59. b7 {[%clk 0:00:05.5]}
59... Rb1 {[%clk 0:00:41.6]} 60. Rxh2 {[%clk 0:00:05.1]} 60... Rxb7 {[%clk
0:00:41.3]} 61. Re2 {[%clk 0:00:05.1]} 61... Re7 {[%clk 0:00:40.3]} 62. Kc4
{[%clk 0:00:04.9]} 62... Rxe6 {[%clk 0:00:40.7]} 63. Rxe6+ {[%clk 0:00:04.9]}
63... Kxe6 {[%clk 0:00:41.1]} 1/2-1/2